[Event "Titled Tuesday Blitz March 07 Late 2023"]
[White "Kretchetov, Alexandre"]
[Black "Yano, William Jorge Froes"]
[WhiteFideId "4124588"]
[BlackFideId "2112949"]
[WhiteElo "2530"]
[BlackElo "2122"]
[Result "1/2-1/2"]
[Round "09"]
[TimeControl "180+2"]
[Date "2023.03.07"]
[WhiteClock "0:01:09"]
[BlackClock "0:01:27"]

1. d4 {[%clk 0:03:00]}  Nf6 {[%clk 0:02:59]} 2. c4 {[%clk 0:03:01]}  c5 {[%clk 0:03:00]} 3. d5 {[%clk 0:03:01]}  b5 {[%clk 0:03:00]} 4. Qc2 {[%clk 0:03:00]}  g6 {[%clk 0:02:59]} 5. e4 {[%clk 0:03:00]}  d6 {[%clk 0:02:59]} 6. b3 {[%clk 0:02:57]}  Bg7 {[%clk 0:02:59]} 7. Bb2 {[%clk 0:02:57]}  O-O {[%clk 0:03:00]} 8. Nd2 {[%clk 0:02:57]}  Na6 {[%clk 0:02:56]} 9. a3 {[%clk 0:02:57]}  bxc4 {[%clk 0:02:53]} 10. Bxc4 {[%clk 0:02:51]}  Rb8 {[%clk 0:02:52]} 11. Ngf3 {[%clk 0:02:49]}  Nc7 {[%clk 0:02:52]} 12. O-O {[%clk 0:02:48]}  Nb5 {[%clk 0:02:49]} 13. a4 {[%clk 0:02:45]}  Nc7 {[%clk 0:02:47]} 14. h3 {[%clk 0:02:43]}  Na6 {[%clk 0:02:46]} 15. Rad1 {[%clk 0:02:37]}  Nb4 {[%clk 0:02:47]} 16. Qb1 {[%clk 0:02:37]}  Ba6 {[%clk 0:02:42]} 17. Rfe1 {[%clk 0:02:34]}  Bxc4 {[%clk 0:02:39]} 18. Nxc4 {[%clk 0:02:34]}  Qc7 {[%clk 0:02:38]} 19. Bc3 {[%clk 0:02:22]}  Rb7 {[%clk 0:02:35]} 20. Nfd2 {[%clk 0:02:18]}  Rfb8 {[%clk 0:02:35]} 21. Bxb4 {[%clk 0:02:11]}  Rxb4 {[%clk 0:02:34]} 22. Qc2 {[%clk 0:02:11]}  Nd7 {[%clk 0:02:34]} 23. Rb1 {[%clk 0:02:06]}  Ne5 {[%clk 0:02:31]} 24. Nxe5 {[%clk 0:02:04]}  Bxe5 {[%clk 0:02:31]} 25. g3 {[%clk 0:02:00]}  Qd7 {[%clk 0:02:29]} 26. Kg2 {[%clk 0:01:59]}  h5 {[%clk 0:02:24]} 27. Nc4 {[%clk 0:01:54]}  Bg7 {[%clk 0:02:24]} 28. Na5 {[%clk 0:01:51]}  R4b6 {[%clk 0:01:55]} 29. Nc6 {[%clk 0:01:48]}  Rxc6 {[%clk 0:01:52]} 30. dxc6 {[%clk 0:01:48]}  Qxc6 {[%clk 0:01:53]} 31. Qd3 {[%clk 0:01:45]}  Rb4 {[%clk 0:01:51]} 32. Qd5 {[%clk 0:01:42]}  Qb6 {[%clk 0:01:46]} 33. Qd3 {[%clk 0:01:37]}  a5 {[%clk 0:01:45]} 34. h4 {[%clk 0:01:35]}  Bd4 {[%clk 0:01:43]} 35. Rec1 {[%clk 0:01:33]}  Qb7 {[%clk 0:01:38]} 36. Rc4 {[%clk 0:01:30]}  Rb6 {[%clk 0:01:37]} 37. f3 {[%clk 0:01:27]}  Be5 {[%clk 0:01:34]} 38. Rc2 {[%clk 0:01:21]}  Rb4 {[%clk 0:01:34]} 39. Rc4 {[%clk 0:01:21]}  Rb6 {[%clk 0:01:34]} 40. Rc2 {[%clk 0:01:19]}  Rb4 {[%clk 0:01:34]} 41. Rcc1 {[%clk 0:01:20]}  Bd4 {[%clk 0:01:31]} 42. Rc4 {[%clk 0:01:19]}  Rb6 {[%clk 0:01:30]} 43. Rcc1 {[%clk 0:01:13]}  Rb4 {[%clk 0:01:29]} 44. Rc4 {[%clk 0:01:13]}  Rb6 {[%clk 0:01:30]} 45. Rcc1 {[%clk 0:01:09]}  Rb4 {[%clk 0:01:27]} 1/2-1/2


[Site "https://www.chess.com"]

[Event "Titled Tuesday Blitz March 07 Late 2023"]
[White "Rego, Pedro Filipe"]
[Black "Petrovic, Aleksa"]
[WhiteFideId "1904310"]
[BlackFideId "967629"]
[WhiteElo "2193"]
[BlackElo "2326"]
[Result "0-1"]
[Round "09"]
[TimeControl "180+2"]
[Date "2023.03.07"]
[WhiteClock "0:00:02"]
[BlackClock "0:00:06"]

1. e4 {[%clk 0:03:00]}  c5 {[%clk 0:02:41]} 2. Nf3 {[%clk 0:02:59]}  e6 {[%clk 0:02:41]} 3. d4 {[%clk 0:02:57]}  cxd4 {[%clk 0:02:42]} 4. Nxd4 {[%clk 0:02:57]}  a6 {[%clk 0:02:41]} 5. c4 {[%clk 0:02:56]}  Nf6 {[%clk 0:02:40]} 6. Bd3 {[%clk 0:02:51]}  Nc6 {[%clk 0:02:37]} 7. Nxc6 {[%clk 0:02:48]}  dxc6 {[%clk 0:02:38]} 8. O-O {[%clk 0:02:47]}  e5 {[%clk 0:02:38]} 9. Bg5 {[%clk 0:02:44]}  h6 {[%clk 0:02:36]} 10. Bh4 {[%clk 0:02:41]}  Bc5 {[%clk 0:02:34]} 11. Bg3 {[%clk 0:02:38]}  Bg4 {[%clk 0:02:28]} 12. Qc2 {[%clk 0:02:23]}  Qe7 {[%clk 0:02:25]} 13. Be2 {[%clk 0:02:18]}  Bxe2 {[%clk 0:02:19]} 14. Qxe2 {[%clk 0:02:19]}  O-O {[%clk 0:02:18]} 15. Kh1 {[%clk 0:02:16]}  b5 {[%clk 0:02:10]} 16. Nc3 {[%clk 0:02:13]}  Rad8 {[%clk 0:02:08]} 17. a3 {[%clk 0:02:11]}  Qe6 {[%clk 0:02:01]} 18. Rac1 {[%clk 0:02:04]}  Bd4 {[%clk 0:01:48]} 19. f3 {[%clk 0:01:55]}  Nd7 {[%clk 0:01:35]} 20. Bf2 {[%clk 0:01:51]}  Nb6 {[%clk 0:01:33]} 21. cxb5 {[%clk 0:01:41]}  axb5 {[%clk 0:01:32]} 22. Rc2 {[%clk 0:01:06]}  Nc4 {[%clk 0:01:28]} 23. Nd1 {[%clk 0:01:01]}  Bxf2 {[%clk 0:01:23]} 24. Nxf2 {[%clk 0:00:58]}  Rd4 {[%clk 0:01:20]} 25. Nd3 {[%clk 0:00:53]}  Rfd8 {[%clk 0:01:16]} 26. Nb4 {[%clk 0:00:53]}  Rd2 {[%clk 0:01:12]} 27. Rxd2 {[%clk 0:00:38]}  Rxd2 {[%clk 0:01:13]} 28. Qe1 {[%clk 0:00:38]}  Qg6 {[%clk 0:01:08]} 29. Rf2 {[%clk 0:00:35]}  Rxb2 {[%clk 0:00:56]} 30. Rxb2 {[%clk 0:00:33]}  Nxb2 {[%clk 0:00:56]} 31. Qc3 {[%clk 0:00:31]}  Nc4 {[%clk 0:00:53]} 32. a4 {[%clk 0:00:26]}  Qd6 {[%clk 0:00:49]} 33. Nd3 {[%clk 0:00:21]}  f6 {[%clk 0:00:36]} 34. axb5 {[%clk 0:00:21]}  cxb5 {[%clk 0:00:36]} 35. h4 {[%clk 0:00:19]}  Kh7 {[%clk 0:00:35]} 36. Kh2 {[%clk 0:00:15]}  Ne3 {[%clk 0:00:32]} 37. Nb4 {[%clk 0:00:13]}  Nc4 {[%clk 0:00:30]} 38. Nd5 {[%clk 0:00:13]}  Qa3 {[%clk 0:00:29]} 39. Qe1 {[%clk 0:00:07]}  h5 {[%clk 0:00:21]} 40. Qg3 {[%clk 0:00:06]}  Qc1 {[%clk 0:00:20]} 41. Qh3 {[%clk 0:00:06]}  Ne3 {[%clk 0:00:13]} 42. Qd7 {[%clk 0:00:03]}  Nxd5 {[%clk 0:00:12]} 43. Qxd5 {[%clk 0:00:03]}  b4 {[%clk 0:00:12]} 44. Qe6 {[%clk 0:00:02]}  Qf4+ {[%clk 0:00:09]} 45. Kh3 {[%clk 0:00:01]}  Kh6 {[%clk 0:00:09]} 46. Qf7 {[%clk 0:00:01]}  b3 {[%clk 0:00:07]} 47. Qxb3 {[%clk 0:00:01]}  g5 {[%clk 0:00:07]} 48. Qg8 {[%clk 0:00:02]}  Qxh4# {[%clk 0:00:06]} 0-1


[Site "https://www.chess.com"]

[Event "Titled Tuesday Blitz March 07 Late 2023"]
[White "Kovacs, Klara"]
[Black "Dragomirescu, Angela"]
[WhiteFideId "733210"]
[BlackFideId "1209914"]
[WhiteElo "2179"]
[BlackElo "2171"]
[Result "0-1"]
[Round "09"]
[TimeControl "180+2"]
[Date "2023.03.07"]
[WhiteClock "0:00:48"]
[BlackClock "0:02:21"]

1. d4 {[%clk 0:01:54]}  Nf6 {[%clk 0:02:58]} 2. Nf3 {[%clk 0:01:52]}  g6 {[%clk 0:02:58]} 3. g3 {[%clk 0:01:51]}  Bg7 {[%clk 0:02:58]} 4. Bg2 {[%clk 0:01:46]}  O-O {[%clk 0:02:59]} 5. O-O {[%clk 0:01:46]}  d6 {[%clk 0:03:00]} 6. c4 {[%clk 0:01:46]}  Nc6 {[%clk 0:03:00]} 7. Nc3 {[%clk 0:01:46]}  a6 {[%clk 0:03:00]} 8. Bg5 {[%clk 0:01:45]}  Rb8 {[%clk 0:02:59]} 9. a4 {[%clk 0:01:44]}  Na5 {[%clk 0:02:51]} 10. b3 {[%clk 0:01:42]}  b6 {[%clk 0:02:36]} 11. h4 {[%clk 0:01:41]}  Bb7 {[%clk 0:02:34]} 12. Rc1 {[%clk 0:01:36]}  c5 {[%clk 0:02:34]} 13. d5 {[%clk 0:01:36]}  Bc8 {[%clk 0:02:30]} 14. Qd2 {[%clk 0:01:34]}  Bd7 {[%clk 0:02:30]} 15. Bh6 {[%clk 0:01:30]}  b5 {[%clk 0:02:30]} 16. Bxg7 {[%clk 0:01:30]}  Kxg7 {[%clk 0:02:30]} 17. axb5 {[%clk 0:01:20]}  Nxb3 {[%clk 0:02:30]} 18. Qb2 {[%clk 0:01:15]}  Nxc1 {[%clk 0:02:30]} 19. Rxc1 {[%clk 0:01:14]}  axb5 {[%clk 0:02:31]} 20. cxb5 {[%clk 0:01:14]}  Qa5 {[%clk 0:02:31]} 21. h5 {[%clk 0:01:03]}  Nxh5 {[%clk 0:02:24]} 22. Ne4+ {[%clk 0:00:59]}  Nf6 {[%clk 0:02:24]} 23. Nxf6 {[%clk 0:00:52]}  exf6 {[%clk 0:02:24]} 24. Ng5 {[%clk 0:00:50]}  Qxb5 {[%clk 0:02:21]} 25. Qa1 {[%clk 0:00:48]}  Qb2 {[%clk 0:02:21]} 0-1


[Site "https://www.chess.com"]

[Event "Titled Tuesday Blitz March 07 Late 2023"]
[White "Einarsson, Halldor Gretar"]
[Black "Kleiman, Jake"]
[WhiteFideId "2300150"]
[BlackFideId "2020041"]
[WhiteElo "2142"]
[BlackElo "2488"]
[Result "0-1"]
[Round "09"]
[TimeControl "180+2"]
[Date "2023.03.07"]
[WhiteClock "0:00:10"]
[BlackClock "0:01:21"]

1. d4 {[%clk 0:03:00]}  Nf6 {[%clk 0:02:46]} 2. c4 {[%clk 0:03:00]}  e6 {[%clk 0:02:42]} 3. g3 {[%clk 0:02:59]}  Bb4+ {[%clk 0:02:42]} 4. Bd2 {[%clk 0:02:57]}  Bxd2+ {[%clk 0:02:42]} 5. Nxd2 {[%clk 0:02:57]}  d6 {[%clk 0:02:39]} 6. Bg2 {[%clk 0:02:56]}  O-O {[%clk 0:02:38]} 7. Ngf3 {[%clk 0:02:55]}  Qe7 {[%clk 0:02:38]} 8. O-O {[%clk 0:02:52]}  e5 {[%clk 0:02:38]} 9. e4 {[%clk 0:02:51]}  Bg4 {[%clk 0:02:37]} 10. dxe5 {[%clk 0:02:43]}  dxe5 {[%clk 0:02:37]} 11. Qc2 {[%clk 0:02:42]}  Nc6 {[%clk 0:02:38]} 12. h3 {[%clk 0:02:38]}  Bxf3 {[%clk 0:02:35]} 13. Nxf3 {[%clk 0:02:38]}  Rfd8 {[%clk 0:02:36]} 14. Rfd1 {[%clk 0:02:37]}  Rxd1+ {[%clk 0:02:22]} 15. Rxd1 {[%clk 0:02:35]}  Rd8 {[%clk 0:02:23]} 16. Rxd8+ {[%clk 0:01:50]}  Qxd8 {[%clk 0:02:24]} 17. Qd2 {[%clk 0:01:26]}  Qxd2 {[%clk 0:02:18]} 18. Nxd2 {[%clk 0:01:26]}  Nd4 {[%clk 0:02:19]} 19. Kf1 {[%clk 0:01:09]}  a5 {[%clk 0:02:13]} 20. f4 {[%clk 0:01:08]}  Nd7 {[%clk 0:02:12]} 21. Nf3 {[%clk 0:01:02]}  Nxf3 {[%clk 0:02:11]} 22. Bxf3 {[%clk 0:01:02]}  f6 {[%clk 0:02:08]} 23. Bg4 {[%clk 0:01:00]}  Nc5 {[%clk 0:02:08]} 24. Bf3 {[%clk 0:00:54]}  exf4 {[%clk 0:02:01]} 25. gxf4 {[%clk 0:00:53]}  Nd3 {[%clk 0:01:58]} 26. e5 {[%clk 0:00:50]}  c6 {[%clk 0:01:53]} 27. exf6 {[%clk 0:00:39]}  gxf6 {[%clk 0:01:54]} 28. f5 {[%clk 0:00:39]}  Nxb2 {[%clk 0:01:49]} 29. Be2 {[%clk 0:00:34]}  Kf7 {[%clk 0:01:44]} 30. Kf2 {[%clk 0:00:30]}  Ke7 {[%clk 0:01:42]} 31. Ke3 {[%clk 0:00:30]}  Kd6 {[%clk 0:01:41]} 32. Kd4 {[%clk 0:00:28]}  Na4 {[%clk 0:01:41]} 33. Bh5 {[%clk 0:00:21]}  Nc5 {[%clk 0:01:39]} 34. Bf7 {[%clk 0:00:20]}  Nd7 {[%clk 0:01:35]} 35. h4 {[%clk 0:00:18]}  b6 {[%clk 0:01:31]} 36. h5 {[%clk 0:00:17]}  h6 {[%clk 0:01:31]} 37. Be6 {[%clk 0:00:17]}  Ne5 {[%clk 0:01:29]} 38. Bc8 {[%clk 0:00:16]}  Nf3+ {[%clk 0:01:23]} 39. Ke3 {[%clk 0:00:13]}  Ng5 {[%clk 0:01:23]} 40. Kd4 {[%clk 0:00:13]}  c5+ {[%clk 0:01:20]} 41. Ke3 {[%clk 0:00:11]}  Ke5 {[%clk 0:01:21]} 42. Bd7 {[%clk 0:00:11]}  Nf7 {[%clk 0:01:20]} 43. Be6 {[%clk 0:00:10]}  Nd6 {[%clk 0:01:21]} 0-1


[Site "https://www.chess.com"]

[Event "Titled Tuesday Blitz March 07 Late 2023"]
[White "Kozin, Yuri"]
[Black "Botez, Alexandra"]
[WhiteFideId "4129920"]
[BlackFideId "2603365"]
[WhiteElo "2485"]
[BlackElo "2059"]
[Result "0-1"]
[Round "09"]
[TimeControl "180+2"]
[Date "2023.03.07"]
[WhiteClock "0:00:02"]
[BlackClock "0:00:05"]

1. e4 {[%clk 0:03:00]}  e6 {[%clk 0:03:00]} 2. d4 {[%clk 0:03:00]}  d5 {[%clk 0:02:59]} 3. Nd2 {[%clk 0:03:01]}  c5 {[%clk 0:02:58]} 4. Ngf3 {[%clk 0:03:01]}  Nf6 {[%clk 0:02:56]} 5. exd5 {[%clk 0:03:01]}  exd5 {[%clk 0:02:52]} 6. Bb5+ {[%clk 0:03:01]}  Bd7 {[%clk 0:02:52]} 7. Bxd7+ {[%clk 0:03:01]}  Nbxd7 {[%clk 0:02:52]} 8. O-O {[%clk 0:03:02]}  Be7 {[%clk 0:02:51]} 9. dxc5 {[%clk 0:03:01]}  Nxc5 {[%clk 0:02:50]} 10. Nd4 {[%clk 0:03:01]}  Qd7 {[%clk 0:02:46]} 11. Qf3 {[%clk 0:02:54]}  g6 {[%clk 0:02:00]} 12. N2b3 {[%clk 0:02:42]}  Nce4 {[%clk 0:01:46]} 13. Bh6 {[%clk 0:02:25]}  Bf8 {[%clk 0:01:17]} 14. Bf4 {[%clk 0:01:57]}  Bg7 {[%clk 0:01:16]} 15. Be5 {[%clk 0:01:57]}  O-O {[%clk 0:01:13]} 16. Rad1 {[%clk 0:01:45]}  Rfe8 {[%clk 0:01:11]} 17. Bxf6 {[%clk 0:01:25]}  Nxf6 {[%clk 0:01:10]} 18. c3 {[%clk 0:01:21]}  b6 {[%clk 0:01:06]} 19. Nc2 {[%clk 0:01:20]}  Ne4 {[%clk 0:01:04]} 20. Rfe1 {[%clk 0:01:18]}  Rad8 {[%clk 0:01:03]} 21. Ne3 {[%clk 0:01:16]}  Nc5 {[%clk 0:00:46]} 22. h3 {[%clk 0:01:06]}  Nxb3 {[%clk 0:00:41]} 23. axb3 {[%clk 0:01:06]}  Qb5 {[%clk 0:00:41]} 24. b4 {[%clk 0:00:55]}  d4 {[%clk 0:00:41]} 25. Ng4 {[%clk 0:00:52]}  dxc3 {[%clk 0:00:29]} 26. bxc3 {[%clk 0:00:34]}  Rxd1 {[%clk 0:00:13]} 27. Rxd1 {[%clk 0:00:31]}  a5 {[%clk 0:00:10]} 28. bxa5 {[%clk 0:00:25]}  bxa5 {[%clk 0:00:10]} 29. Nf6+ {[%clk 0:00:21]}  Bxf6 {[%clk 0:00:10]} 30. Qxf6 {[%clk 0:00:22]}  a4 {[%clk 0:00:11]} 31. Ra1 {[%clk 0:00:20]}  Rb8 {[%clk 0:00:09]} 32. Qd6 {[%clk 0:00:17]}  Qb3 {[%clk 0:00:09]} 33. Ra3 {[%clk 0:00:17]}  Qb5 {[%clk 0:00:09]} 34. Qc7 {[%clk 0:00:14]}  Qb1+ {[%clk 0:00:07]} 35. Kh2 {[%clk 0:00:14]}  Qb5 {[%clk 0:00:08]} 36. c4 {[%clk 0:00:12]}  Qb4 {[%clk 0:00:06]} 37. Rxa4 {[%clk 0:00:11]}  Qb7 {[%clk 0:00:02]} 38. Ra7 {[%clk 0:00:09]}  Qxc7+ {[%clk 0:00:01]} 39. Rxc7 {[%clk 0:00:10]}  Rb1 {[%clk 0:00:02]} 40. Kg3 {[%clk 0:00:10]}  Kg7 {[%clk 0:00:02]} 41. c5 {[%clk 0:00:10]}  Rc1 {[%clk 0:00:03]} 42. c6 {[%clk 0:00:10]}  Kf6 {[%clk 0:00:03]} 43. f4 {[%clk 0:00:10]}  h5 {[%clk 0:00:03]} 44. Kf2 {[%clk 0:00:08]}  Ke6 {[%clk 0:00:03]} 45. g4 {[%clk 0:00:07]}  hxg4 {[%clk 0:00:03]} 46. hxg4 {[%clk 0:00:08]}  f6 {[%clk 0:00:04]} 47. Kf3 {[%clk 0:00:07]}  Rc4 {[%clk 0:00:04]} 48. Ke3 {[%clk 0:00:07]}  Rc1 {[%clk 0:00:03]} 49. Rc8 {[%clk 0:00:08]}  Kd6 {[%clk 0:00:03]} 50. Rg8 {[%clk 0:00:05]}  Rxc6 {[%clk 0:00:04]} 51. Rxg6 {[%clk 0:00:05]}  Ke7 {[%clk 0:00:04]} 52. Rg7+ {[%clk 0:00:05]}  Ke6 {[%clk 0:00:05]} 53. Ra7 {[%clk 0:00:05]}  Rb6 {[%clk 0:00:04]} 54. Ra3 {[%clk 0:00:04]}  Rc6 {[%clk 0:00:04]} 55. Rd3 {[%clk 0:00:04]}  Ra6 {[%clk 0:00:04]} 56. Ke4 {[%clk 0:00:04]}  Ra4+ {[%clk 0:00:04]} 57. Rd4 {[%clk 0:00:05]}  Ra1 {[%clk 0:00:04]} 58. f5+ {[%clk 0:00:05]}  Ke7 {[%clk 0:00:04]} 59. Rc4 {[%clk 0:00:05]}  Re1+ {[%clk 0:00:05]} 60. Kd5 {[%clk 0:00:04]}  Rd1+ {[%clk 0:00:05]} 61. Rd4 {[%clk 0:00:05]}  Rg1 {[%clk 0:00:04]} 62. Re4+ {[%clk 0:00:05]}  Kf7 {[%clk 0:00:04]} 63. Kd6 {[%clk 0:00:05]}  Rd1+ {[%clk 0:00:04]} 64. Kc5 {[%clk 0:00:06]}  Rc1+ {[%clk 0:00:04]} 65. Kd5 {[%clk 0:00:06]}  Rd1+ {[%clk 0:00:05]} 66. Rd4 {[%clk 0:00:06]}  Rg1 {[%clk 0:00:05]} 67. Kc4 {[%clk 0:00:05]}  Kg7 {[%clk 0:00:04]} 68. Kd3 {[%clk 0:00:06]}  Kh6 {[%clk 0:00:04]} 69. Ke3 {[%clk 0:00:06]}  Kg5 {[%clk 0:00:04]} 70. Kf3 {[%clk 0:00:06]}  Rf1+ {[%clk 0:00:04]} 71. Kg2 {[%clk 0:00:05]}  Re1 {[%clk 0:00:03]} 72. Kf2 {[%clk 0:00:05]}  Ra1 {[%clk 0:00:03]} 73. Rb4 {[%clk 0:00:05]}  Ra2+ {[%clk 0:00:03]} 74. Kf3 {[%clk 0:00:05]}  Ra3+ {[%clk 0:00:04]} 75. Kg2 {[%clk 0:00:03]}  Ra2+ {[%clk 0:00:04]} 76. Kg3 {[%clk 0:00:02]}  Ra3+ {[%clk 0:00:05]} 77. Kf2 {[%clk 0:00:02]}  Ra2+ {[%clk 0:00:05]} 78. Kf3 {[%clk 0:00:02]}  Ra3+ {[%clk 0:00:05]} 79. Ke4 {[%clk 0:00:02]}  Kxg4 {[%clk 0:00:05]} 80. Rd4 {[%clk 0:00:02]}  Kg5 {[%clk 0:00:05]} 0-1


[Site "https://www.chess.com"]

[Event "Titled Tuesday Blitz March 07 Late 2023"]
[White "Torres Dominguez, David"]
[Black "Poeta, Caio Medeiros"]
[WhiteFideId "2220857"]
[BlackFideId "2142660"]
[WhiteElo "1999"]
[BlackElo "2191"]
[Result "0-1"]
[Round "09"]
[TimeControl "180+2"]
[Date "2023.03.07"]
[WhiteClock "0:00:01"]
[BlackClock "0:00:53"]

1. e4 {[%clk 0:03:00]}  c6 {[%clk 0:02:59]} 2. Nf3 {[%clk 0:02:59]}  d5 {[%clk 0:03:00]} 3. d3 {[%clk 0:03:00]}  Bg4 {[%clk 0:02:55]} 4. Be2 {[%clk 0:03:00]}  e6 {[%clk 0:02:53]} 5. O-O {[%clk 0:02:58]}  dxe4 {[%clk 0:02:50]} 6. dxe4 {[%clk 0:02:58]}  Qxd1 {[%clk 0:02:51]} 7. Rxd1 {[%clk 0:02:49]}  Nf6 {[%clk 0:02:52]} 8. Nbd2 {[%clk 0:02:40]}  Nbd7 {[%clk 0:02:49]} 9. Kf1 {[%clk 0:02:40]}  O-O-O {[%clk 0:02:44]} 10. Ng5 {[%clk 0:02:40]}  Bxe2+ {[%clk 0:02:41]} 11. Kxe2 {[%clk 0:02:40]}  Re8 {[%clk 0:02:18]} 12. Nxf7 {[%clk 0:02:39]}  Rg8 {[%clk 0:02:19]} 13. Nc4 {[%clk 0:02:34]}  Kc7 {[%clk 0:02:17]} 14. a4 {[%clk 0:01:58]}  e5 {[%clk 0:02:11]} 15. Nfd6 {[%clk 0:01:50]}  Bxd6 {[%clk 0:02:08]} 16. Nxd6 {[%clk 0:01:49]}  Re6 {[%clk 0:02:07]} 17. Nc4 {[%clk 0:01:32]}  Nxe4 {[%clk 0:02:05]} 18. Be3 {[%clk 0:01:31]}  b6 {[%clk 0:02:02]} 19. c3 {[%clk 0:01:24]}  Ndf6 {[%clk 0:01:53]} 20. f3 {[%clk 0:01:21]}  Nc5 {[%clk 0:01:47]} 21. Bxc5 {[%clk 0:01:19]}  bxc5 {[%clk 0:01:48]} 22. Kf2 {[%clk 0:01:04]}  Rb8 {[%clk 0:01:47]} 23. Re1 {[%clk 0:01:01]}  e4 {[%clk 0:01:45]} 24. Kf1 {[%clk 0:00:44]}  Ree8 {[%clk 0:01:45]} 25. Rad1 {[%clk 0:00:40]}  exf3 {[%clk 0:01:41]} 26. gxf3 {[%clk 0:00:38]}  Nd5 {[%clk 0:01:38]} 27. Rxe8 {[%clk 0:00:33]}  Rxe8 {[%clk 0:01:38]} 28. a5 {[%clk 0:00:24]}  Rb8 {[%clk 0:01:38]} 29. Re1 {[%clk 0:00:20]}  Rf8 {[%clk 0:01:37]} 30. Kg2 {[%clk 0:00:20]}  Rf7 {[%clk 0:01:36]} 31. Kg3 {[%clk 0:00:19]}  h6 {[%clk 0:01:30]} 32. Re5 {[%clk 0:00:19]}  Kb7 {[%clk 0:01:20]} 33. Nd6+ {[%clk 0:00:18]}  Ka6 {[%clk 0:01:19]} 34. Nxf7 {[%clk 0:00:18]}  Kb5 {[%clk 0:01:19]} 35. Nd6+ {[%clk 0:00:18]}  Kxa5 {[%clk 0:01:19]} 36. Ne4 {[%clk 0:00:18]}  Kb5 {[%clk 0:01:19]} 37. b3 {[%clk 0:00:16]}  c4 {[%clk 0:01:19]} 38. bxc4+ {[%clk 0:00:14]}  Kxc4 {[%clk 0:01:19]} 39. Nd6+ {[%clk 0:00:12]}  Kxc3 {[%clk 0:01:19]} 40. Nb7 {[%clk 0:00:11]}  Kb4 {[%clk 0:01:16]} 41. Kf2 {[%clk 0:00:10]}  a5 {[%clk 0:01:16]} 42. Ke2 {[%clk 0:00:07]}  a4 {[%clk 0:01:16]} 43. Kd2 {[%clk 0:00:07]}  Kb3 {[%clk 0:01:09]} 44. Na5+ {[%clk 0:00:05]}  Kb2 {[%clk 0:01:08]} 45. Nxc6 {[%clk 0:00:05]}  a3 {[%clk 0:01:08]} 46. Rxd5 {[%clk 0:00:05]}  a2 {[%clk 0:01:06]} 47. Ra5 {[%clk 0:00:05]}  a1=Q {[%clk 0:01:07]} 48. Rxa1 {[%clk 0:00:06]}  Kxa1 {[%clk 0:01:08]} 49. Ke3 {[%clk 0:00:06]}  Kb2 {[%clk 0:01:08]} 50. Nd8 {[%clk 0:00:05]}  Kc3 {[%clk 0:01:08]} 51. Ne6 {[%clk 0:00:06]}  g6 {[%clk 0:01:08]} 52. Nf4 {[%clk 0:00:06]}  g5 {[%clk 0:01:08]} 53. Ne6 {[%clk 0:00:05]}  Kc4 {[%clk 0:01:08]} 54. Ke4 {[%clk 0:00:05]}  Kb5 {[%clk 0:01:06]} 55. h3 {[%clk 0:00:05]}  Kc6 {[%clk 0:01:06]} 56. Ke5 {[%clk 0:00:05]}  Kd7 {[%clk 0:01:06]} 57. Nf8+ {[%clk 0:00:05]}  Ke7 {[%clk 0:01:06]} 58. Nd7 {[%clk 0:00:03]}  Kf7 {[%clk 0:00:57]} 59. Nc5 {[%clk 0:00:02]}  Kg6 {[%clk 0:00:58]} 60. Ne4 {[%clk 0:00:02]}  Kh5 {[%clk 0:00:58]} 61. Kf5 {[%clk 0:00:02]}  Kh4 {[%clk 0:00:58]} 62. Kg6 {[%clk 0:00:01]}  Kxh3 {[%clk 0:00:53]} 63. Kxh6 {[%clk 0:00:01]}  Kg2 {[%clk 0:00:53]} 0-1


[Site "https://www.chess.com"]

[Event "Titled Tuesday Blitz March 07 Late 2023"]
[White "Womacka, Mathias"]
[Black "Ricaurte Lopez, Juan Carlos"]
[WhiteFideId "4611390"]
[BlackFideId "3600327"]
[WhiteElo "2377"]
[BlackElo "2209"]
[Result "1-0"]
[Round "09"]
[TimeControl "180+2"]
[Date "2023.03.07"]
[WhiteClock "0:00:27"]
[BlackClock "0:00:15"]

1. e4 {[%clk 0:03:00]}  e5 {[%clk 0:02:59]} 2. Nf3 {[%clk 0:02:59]}  d5 {[%clk 0:02:59]} 3. exd5 {[%clk 0:02:58]}  e4 {[%clk 0:02:57]} 4. Qe2 {[%clk 0:02:58]}  Nf6 {[%clk 0:02:56]} 5. d3 {[%clk 0:02:57]}  Be7 {[%clk 0:02:54]} 6. dxe4 {[%clk 0:02:56]}  O-O {[%clk 0:02:52]} 7. Nc3 {[%clk 0:02:48]}  Re8 {[%clk 0:02:52]} 8. Bd2 {[%clk 0:02:40]}  Bb4 {[%clk 0:02:48]} 9. O-O-O {[%clk 0:02:39]}  Bxc3 {[%clk 0:02:46]} 10. Bxc3 {[%clk 0:02:39]}  Nxe4 {[%clk 0:02:45]} 11. Be5 {[%clk 0:02:22]}  Bf5 {[%clk 0:02:19]} 12. Qe3 {[%clk 0:01:50]}  Nd7 {[%clk 0:02:15]} 13. Bd4 {[%clk 0:01:23]}  Ng3 {[%clk 0:01:51]} 14. Qf4 {[%clk 0:01:21]}  Nxh1 {[%clk 0:01:50]} 15. Qxf5 {[%clk 0:01:20]}  Nxf2 {[%clk 0:01:38]} 16. Bxf2 {[%clk 0:01:18]}  Nf6 {[%clk 0:01:37]} 17. Bh4 {[%clk 0:01:07]}  Qd6 {[%clk 0:01:22]} 18. Bd3 {[%clk 0:01:00]}  Re3 {[%clk 0:00:43]} 19. Bxf6 {[%clk 0:00:56]}  Rxd3 {[%clk 0:00:36]} 20. Rxd3 {[%clk 0:00:54]}  gxf6 {[%clk 0:00:31]} 21. a3 {[%clk 0:00:42]}  Re8 {[%clk 0:00:29]} 22. Kb1 {[%clk 0:00:42]}  Re7 {[%clk 0:00:27]} 23. Nd4 {[%clk 0:00:39]}  Qe5 {[%clk 0:00:18]} 24. Rg3+ {[%clk 0:00:31]}  Kh8 {[%clk 0:00:18]} 25. Qg4 {[%clk 0:00:29]}  Qg5 {[%clk 0:00:15]} 26. Qc8+ {[%clk 0:00:27]} 1-0


[Site "https://www.chess.com"]